[Event "*** Titled Tuesday Blitz"]
[Site "Chess.com"]
[Date "2020.04.14"]
[Round "9"]
[White "MacDaddyMac"]
[Black "talman67"]
[Result "0-1"]
[WhiteElo "2290"]
[BlackElo "2517"]
[TimeControl "180+1"]
[EndTime "11:44:08 PDT"]
[Termination "talman67 won by resignation"]

1. e4 {[%clk 0:03:00.9]} 1... e5 {[%clk 0:02:52.4]} 2. Nf3 {[%clk 0:03:00.4]}
2... Nc6 {[%clk 0:02:52.4]} 3. Bb5 {[%clk 0:03:00.4]} 3... a6 {[%clk 0:02:52.3]}
4. Ba4 {[%clk 0:03:00.7]} 4... Nf6 {[%clk 0:02:52.5]} 5. Nc3 {[%clk 0:02:58.5]}
5... b5 {[%clk 0:02:51.8]} 6. Bb3 {[%clk 0:02:58]} 6... Bc5 {[%clk 0:02:52.7]}
7. d3 {[%clk 0:02:57.4]} 7... d6 {[%clk 0:02:52.8]} 8. Nd5 {[%clk 0:02:57.4]}
8... h6 {[%clk 0:02:48.4]} 9. c3 {[%clk 0:02:47.4]} 9... Rb8 {[%clk 0:02:48.4]}
10. Be3 {[%clk 0:02:38.5]} 10... Bxe3 {[%clk 0:02:46.4]} 11. fxe3 {[%clk
0:02:38.7]} 11... Nxd5 {[%clk 0:02:44.1]} 12. Bxd5 {[%clk 0:02:36.3]} 12... Ne7
{[%clk 0:02:45]} 13. O-O {[%clk 0:02:35.6]} 13... O-O {[%clk 0:02:43.5]} 14. Bb3
{[%clk 0:02:32.8]} 14... Ng6 {[%clk 0:02:38]} 15. Qe1 {[%clk 0:02:30.2]} 15...
Kh7 {[%clk 0:02:22.1]} 16. Qg3 {[%clk 0:02:27.1]} 16... Be6 {[%clk 0:02:20.6]}
17. Bxe6 {[%clk 0:02:21.6]} 17... fxe6 {[%clk 0:02:20.4]} 18. d4 {[%clk
0:02:16.9]} 18... exd4 {[%clk 0:02:10.8]} 19. exd4 {[%clk 0:02:16.9]} 19... Qe7
{[%clk 0:02:10.8]} 20. Rae1 {[%clk 0:02:14.1]} 20... Rf4 {[%clk 0:02:06.8]} 21.
Nd2 {[%clk 0:02:02.7]} 21... Rbf8 {[%clk 0:02:07]} 22. Rxf4 {[%clk 0:02:02.5]}
22... Rxf4 {[%clk 0:02:05.9]} 23. Rf1 {[%clk 0:02:03]} 23... Rxf1+ {[%clk
0:01:59.6]} 24. Nxf1 {[%clk 0:02:02.4]} 24... c5 {[%clk 0:01:54.3]} 25. Qe3
{[%clk 0:01:51.8]} 25... cxd4 {[%clk 0:01:47.6]} 26. cxd4 {[%clk 0:01:51.7]}
26... Qc7 {[%clk 0:01:47.5]} 27. Qc3 {[%clk 0:01:51.4]} 27... Qxc3 {[%clk
0:01:47.5]} 28. bxc3 {[%clk 0:01:52.3]} 28... Nf4 {[%clk 0:01:48.4]} 29. Kf2
{[%clk 0:01:50.1]} 29... d5 {[%clk 0:01:35.8]} 30. e5 {[%clk 0:01:41.8]} 30...
b4 {[%clk 0:01:25.7]} 31. cxb4 {[%clk 0:01:38.4]} 31... Nd3+ {[%clk 0:01:24.7]}
32. Ke3 {[%clk 0:01:38.6]} 32... Nxb4 {[%clk 0:01:25.6]} 33. a4 {[%clk
0:01:38.2]} 33... g5 {[%clk 0:01:22.8]} 34. Nd2 {[%clk 0:01:28.6]} 34... Nc2+
{[%clk 0:01:22.4]} 35. Kd3 {[%clk 0:01:26]} 35... Ne1+ {[%clk 0:01:22.7]} 36.
Kc3 {[%clk 0:01:25.9]} 36... Nxg2 {[%clk 0:01:23.6]} 37. Nb3 {[%clk 0:01:26.3]}
37... g4 {[%clk 0:01:05.3]} 38. Nc5 {[%clk 0:01:18.7]} 38... a5 {[%clk 0:01:02]}
39. Nxe6 {[%clk 0:00:58]} 39... h5 {[%clk 0:01:02.1]} 40. Nc7 {[%clk 0:00:58]}
40... Nf4 {[%clk 0:01:01.8]} 41. e6 {[%clk 0:00:56.1]} 41... Ng6 {[%clk
0:00:55.9]} 42. Nxd5 {[%clk 0:00:55.3]} 42... Kg7 {[%clk 0:00:52.6]} 43. Kd3
{[%clk 0:00:52.3]} 43... h4 {[%clk 0:00:51.2]} 44. Ke4 {[%clk 0:00:50.6]} 44...
h3 {[%clk 0:00:51.2]} 45. Nf4 {[%clk 0:00:35.8]} 45... Nh4 {[%clk 0:00:47]} 46.
Ne2 {[%clk 0:00:25.7]} 46... Nf3 {[%clk 0:00:45.9]} 47. Kf4 {[%clk 0:00:24.8]}
47... Nxh2 {[%clk 0:00:45.5]} 48. Ng3 {[%clk 0:00:21.5]} 48... Kf6 {[%clk
0:00:43.9]} 49. d5 {[%clk 0:00:20.6]} 49... Nf3 {[%clk 0:00:41.7]} 50. Kxg4
{[%clk 0:00:20.5]} 50... Ng1 {[%clk 0:00:37.7]} 51. Kf4 {[%clk 0:00:18.5]} 51...
h2 {[%clk 0:00:36.4]} 52. Ke4 {[%clk 0:00:18.7]} 52... Ne2 {[%clk 0:00:33.5]}
53. Nh1 {[%clk 0:00:18]} 53... Nc3+ {[%clk 0:00:34]} 54. Kd4 {[%clk 0:00:18]}
54... Nxa4 {[%clk 0:00:34.9]} 55. Kc4 {[%clk 0:00:18.2]} 55... Nb6+ {[%clk
0:00:11.9]} 56. Kc5 {[%clk 0:00:18]} 56... a4 {[%clk 0:00:04.6]} 57. Kxb6 {[%clk
0:00:16.9]} 57... a3 {[%clk 0:00:04.6]} 58. d6 {[%clk 0:00:15.8]} 58... Kxe6
{[%clk 0:00:04.3]} 59. Kc7 {[%clk 0:00:15.9]} 59... a2 {[%clk 0:00:04.4]} 60. d7
{[%clk 0:00:16.4]} 60... a1=Q {[%clk 0:00:04.8]} 61. d8=Q {[%clk 0:00:16.8]}
61... Qa5+ {[%clk 0:00:03.8]} 62. Kc8 {[%clk 0:00:16.7]} 62... Qxd8+ {[%clk
0:00:04.1]} 63. Kxd8 {[%clk 0:00:16.9]} 63... Ke5 {[%clk 0:00:04.9]} 64. Kd7
{[%clk 0:00:17.3]} 64... Ke4 {[%clk 0:00:05.4]} 65. Ke6 {[%clk 0:00:17.5]} 65...
Kf3 {[%clk 0:00:06]} 66. Ke5 {[%clk 0:00:17.6]} 66... Kg2 {[%clk 0:00:06.6]} 67.
Ng3 {[%clk 0:00:13.2]} 67... Kxg3 {[%clk 0:00:06.5]} 0-1

[Event "*** Titled Tuesday Blitz"]
[Site "Chess.com"]
[Date "2020.04.14"]
[Round "9"]
[White "1f3_2g41-0"]
[Black "Nafania1"]
[Result "0-1"]
[WhiteElo "2181"]
[BlackElo "2362"]
[TimeControl "180+1"]
[EndTime "11:44:14 PDT"]
[Termination "Nafania1 won by checkmate"]

1. e4 {[%clk 0:03:00.9]} 1... e6 {[%clk 0:02:59.8]} 2. d4 {[%clk 0:02:59.2]}
2... d5 {[%clk 0:02:59.9]} 3. Nc3 {[%clk 0:02:58.3]} 3... h6 {[%clk 0:02:58.8]}
4. Nf3 {[%clk 0:02:53.4]} 4... Nf6 {[%clk 0:02:57.1]} 5. exd5 {[%clk 0:02:46.8]}
5... exd5 {[%clk 0:02:56.8]} 6. Bd3 {[%clk 0:02:47.4]} 6... Bb4 {[%clk
0:02:56.1]} 7. Qe2+ {[%clk 0:02:47.2]} 7... Be6 {[%clk 0:02:54.9]} 8. O-O {[%clk
0:02:44.6]} 8... O-O {[%clk 0:02:54.5]} 9. a3 {[%clk 0:02:41.5]} 9... Bxc3
{[%clk 0:02:45.5]} 10. bxc3 {[%clk 0:02:40.6]} 10... Nbd7 {[%clk 0:02:37.3]} 11.
Re1 {[%clk 0:02:35.7]} 11... c5 {[%clk 0:02:36.1]} 12. Nh4 {[%clk 0:02:22.7]}
12... Re8 {[%clk 0:02:34.5]} 13. Qf1 {[%clk 0:01:58.5]} 13... c4 {[%clk
0:02:28.8]} 14. Bf5 {[%clk 0:01:57.4]} 14... Ne4 {[%clk 0:02:19.5]} 15. Bxe4
{[%clk 0:01:40.9]} 15... dxe4 {[%clk 0:02:16]} 16. Rxe4 {[%clk 0:01:36.7]} 16...
Nf6 {[%clk 0:02:14.9]} 17. Re1 {[%clk 0:01:34.6]} 17... Nd5 {[%clk 0:02:15]} 18.
Nf3 {[%clk 0:01:31.8]} 18... Nxc3 {[%clk 0:02:14.6]} 19. Bd2 {[%clk 0:01:28]}
19... Nd5 {[%clk 0:02:04.1]} 20. c3 {[%clk 0:01:27.6]} 20... Rc8 {[%clk
0:01:55.7]} 21. Ne5 {[%clk 0:01:23.9]} 21... Qc7 {[%clk 0:01:52.2]} 22. f4
{[%clk 0:01:20.8]} 22... f6 {[%clk 0:01:52.1]} 23. Ng6 {[%clk 0:01:17.2]} 23...
Bf5 {[%clk 0:01:51.5]} 24. Nh4 {[%clk 0:01:16.5]} 24... Bd3 {[%clk 0:01:50.8]}
25. Qf3 {[%clk 0:01:16.2]} 25... Qd7 {[%clk 0:01:46.8]} 26. f5 {[%clk 0:01:08]}
26... Ne7 {[%clk 0:01:26.5]} 27. g4 {[%clk 0:01:03.2]} 27... Qc6 {[%clk
0:01:19.3]} 28. Qxc6 {[%clk 0:00:58]} 28... Nxc6 {[%clk 0:01:13.2]} 29. Ng2
{[%clk 0:00:57.1]} 29... Na5 {[%clk 0:01:11.5]} 30. Bf4 {[%clk 0:00:45.8]} 30...
Nb3 {[%clk 0:01:10.7]} 31. Rxe8+ {[%clk 0:00:45.4]} 31... Rxe8 {[%clk
0:01:10.2]} 32. Re1 {[%clk 0:00:45.4]} 32... Rxe1+ {[%clk 0:00:59.7]} 33. Nxe1
{[%clk 0:00:44.1]} 33... Be4 {[%clk 0:00:59.9]} 34. Kf2 {[%clk 0:00:41.9]} 34...
b5 {[%clk 0:00:52.9]} 35. Ke3 {[%clk 0:00:41.2]} 35... Bd5 {[%clk 0:00:45.3]}
36. Nc2 {[%clk 0:00:40.6]} 36... a5 {[%clk 0:00:45]} 37. Bd6 {[%clk 0:00:37.6]}
37... Kf7 {[%clk 0:00:44.7]} 38. Ne1 {[%clk 0:00:33.4]} 38... g6 {[%clk
0:00:39.2]} 39. fxg6+ {[%clk 0:00:29]} 39... Kxg6 {[%clk 0:00:39.3]} 40. Kf4
{[%clk 0:00:28]} 40... Nd2 {[%clk 0:00:33.5]} 41. Bc7 {[%clk 0:00:24.1]} 41...
a4 {[%clk 0:00:31]} 42. Ba5 {[%clk 0:00:22.7]} 42... Nb3 {[%clk 0:00:20.8]} 43.
Nc2 {[%clk 0:00:21.4]} 43... Nxa5 {[%clk 0:00:20.6]} 44. Ne3 {[%clk 0:00:21.6]}
44... Bb7 {[%clk 0:00:15.8]} 45. d5 {[%clk 0:00:21.6]} 45... Nb3 {[%clk
0:00:13.5]} 46. d6 {[%clk 0:00:21.8]} 46... Nc5 {[%clk 0:00:13.7]} 47. Nd5
{[%clk 0:00:19.9]} 47... Bxd5 {[%clk 0:00:13.2]} 48. Ke3 {[%clk 0:00:20.3]}
48... Be6 {[%clk 0:00:11.7]} 49. Kd4 {[%clk 0:00:21.2]} 49... Nd3 {[%clk
0:00:09.4]} 50. h3 {[%clk 0:00:20.7]} 50... Kf7 {[%clk 0:00:09.3]} 51. Ke3
{[%clk 0:00:19.4]} 51... Ke8 {[%clk 0:00:08.9]} 52. Kd4 {[%clk 0:00:19.8]} 52...
Kd7 {[%clk 0:00:09.1]} 53. Ke4 {[%clk 0:00:20.7]} 53... Kxd6 {[%clk 0:00:09.5]}
54. Kf3 {[%clk 0:00:21]} 54... Ne5+ {[%clk 0:00:09]} 55. Kg3 {[%clk 0:00:21.9]}
55... Kd5 {[%clk 0:00:09]} 56. Kh4 {[%clk 0:00:22.8]} 56... Nf7 {[%clk
0:00:08.7]} 57. Kh5 {[%clk 0:00:23.7]} 57... Ke5 {[%clk 0:00:09.1]} 58. Kg6
{[%clk 0:00:24.6]} 58... Ng5 {[%clk 0:00:09.3]} 59. h4 {[%clk 0:00:24.4]} 59...
Nf3 {[%clk 0:00:09.4]} 60. Kxh6 {[%clk 0:00:24.4]} 60... Bxg4 {[%clk 0:00:09.5]}
61. Kg6 {[%clk 0:00:25.1]} 61... Nxh4+ {[%clk 0:00:09.1]} 62. Kh6 {[%clk
0:00:24.8]} 62... Nf3 {[%clk 0:00:09.3]} 63. Kg6 {[%clk 0:00:25.7]} 63... Ne1
{[%clk 0:00:09.2]} 64. Kf7 {[%clk 0:00:25.6]} 64... Nc2 {[%clk 0:00:09.4]} 65.
Ke7 {[%clk 0:00:26.5]} 65... Nxa3 {[%clk 0:00:09.5]} 66. Kd8 {[%clk 0:00:26.6]}
66... Nc2 {[%clk 0:00:09.5]} 67. Kc7 {[%clk 0:00:27.5]} 67... b4 {[%clk
0:00:10]} 68. Kb6 {[%clk 0:00:28.4]} 68... bxc3 {[%clk 0:00:09.4]} 69. Kc5
{[%clk 0:00:29.3]} 69... a3 {[%clk 0:00:09.7]} 70. Kb5 {[%clk 0:00:28.4]} 70...
a2 {[%clk 0:00:09.9]} 71. Kc5 {[%clk 0:00:29.3]} 71... a1=Q {[%clk 0:00:10.1]}
72. Kb5 {[%clk 0:00:30.2]} 72... Qb2+ {[%clk 0:00:09.9]} 73. Kc5 {[%clk
0:00:31.1]} 73... Qb4+ {[%clk 0:00:09.6]} 74. Kc6 {[%clk 0:00:30.8]} 74... Bf3+
{[%clk 0:00:08.1]} 75. Kc7 {[%clk 0:00:30.9]} 75... Qb7+ {[%clk 0:00:07.8]} 76.
Kd8 {[%clk 0:00:30.5]} 76... Ke6 {[%clk 0:00:07.9]} 77. Ke8 {[%clk 0:00:29.8]}
77... Qb8# {[%clk 0:00:08.1]} 0-1

[Event "*** Titled Tuesday Blitz"]
[Site "Chess.com"]
[Date "2020.04.14"]
[Round "9"]
[White "LogoCzar"]
[Black "erlesfar"]
[Result "1-0"]
[WhiteElo "2430"]
[BlackElo "2251"]
[TimeControl "180+1"]
[EndTime "11:44:29 PDT"]
[Termination "LogoCzar won by checkmate"]

1. d4 {[%clk 0:03:00.9]} 1... Nf6 {[%clk 0:02:55.1]} 2. Nf3 {[%clk 0:03:00.2]}
2... c5 {[%clk 0:02:54]} 3. e3 {[%clk 0:02:59.2]} 3... d5 {[%clk 0:02:53.1]} 4.
c3 {[%clk 0:02:57.6]} 4... Nc6 {[%clk 0:02:51.9]} 5. Nbd2 {[%clk 0:02:46.1]}
5... g6 {[%clk 0:02:50.6]} 6. Bb5 {[%clk 0:02:43.2]} 6... Bg7 {[%clk 0:02:47.2]}
7. O-O {[%clk 0:02:42.8]} 7... O-O {[%clk 0:02:45.8]} 8. Bxc6 {[%clk 0:02:42.6]}
8... bxc6 {[%clk 0:02:44.7]} 9. dxc5 {[%clk 0:02:43]} 9... Nd7 {[%clk
0:02:43.7]} 10. Nb3 {[%clk 0:02:42.2]} 10... e5 {[%clk 0:02:42.7]} 11. e4 {[%clk
0:02:40.3]} 11... dxe4 {[%clk 0:02:33.7]} 12. Nfd2 {[%clk 0:02:40.5]} 12... f5
{[%clk 0:02:29.4]} 13. Re1 {[%clk 0:02:36.6]} 13... Ba6 {[%clk 0:02:27.3]} 14.
f3 {[%clk 0:02:34.6]} 14... Qe7 {[%clk 0:02:14.5]} 15. fxe4 {[%clk 0:02:31.9]}
15... Nxc5 {[%clk 0:02:13.3]} 16. exf5 {[%clk 0:02:23.5]} 16... gxf5 {[%clk
0:01:53.7]} 17. Nf3 {[%clk 0:02:22.6]} 17... Rad8 {[%clk 0:01:46.5]} 18. Bg5
{[%clk 0:02:11.5]} 18... Bf6 {[%clk 0:01:36]} 19. Bxf6 {[%clk 0:02:11.1]} 19...
Qxf6 {[%clk 0:01:32.6]} 20. Nxc5 {[%clk 0:02:07.1]} 20... Rxd1 {[%clk
0:01:30.9]} 21. Raxd1 {[%clk 0:02:06.5]} 21... Bc8 {[%clk 0:01:19.3]} 22. Nxe5
{[%clk 0:02:04.2]} 22... f4 {[%clk 0:01:17.2]} 23. Ncd7 {[%clk 0:02:01.4]} 23...
Bxd7 {[%clk 0:01:16.2]} 24. Nxd7 {[%clk 0:02:01.5]} 24... Qf5 {[%clk 0:01:14.5]}
25. Nxf8 {[%clk 0:02:00.6]} 25... Kxf8 {[%clk 0:01:12.1]} 26. Rd4 {[%clk
0:01:52.4]} 26... f3 {[%clk 0:01:02.3]} 27. gxf3 {[%clk 0:01:45.7]} 27... Kg7
{[%clk 0:00:59.9]} 28. Kf2 {[%clk 0:01:30.6]} 28... Qc2+ {[%clk 0:00:55.8]} 29.
Re2 {[%clk 0:01:30.1]} 29... Qb1 {[%clk 0:00:53.8]} 30. a3 {[%clk 0:01:26]}
30... a5 {[%clk 0:00:52.7]} 31. Rd7+ {[%clk 0:01:23.9]} 31... Kf6 {[%clk
0:00:51.4]} 32. Rd6+ {[%clk 0:01:23.8]} 32... Kf5 {[%clk 0:00:50.8]} 33. Rxc6
{[%clk 0:01:23.1]} 33... Qh1 {[%clk 0:00:49.4]} 34. Rc5+ {[%clk 0:01:21.4]}
34... Kf6 {[%clk 0:00:48.2]} 35. Rxa5 {[%clk 0:01:12.8]} 35... Qxh2+ {[%clk
0:00:45.6]} 36. Ke3 {[%clk 0:01:09.7]} 36... Qg1+ {[%clk 0:00:43.2]} 37. Kd2
{[%clk 0:01:08.1]} 37... Qg3 {[%clk 0:00:38.1]} 38. Rae5 {[%clk 0:01:05.1]}
38... Qxf3 {[%clk 0:00:33]} 39. Re6+ {[%clk 0:01:03.6]} 39... Kf7 {[%clk
0:00:29.2]} 40. Re7+ {[%clk 0:01:03.7]} 40... Kf8 {[%clk 0:00:28.5]} 41. R7e3
{[%clk 0:00:58.6]} 41... Qf4 {[%clk 0:00:27.1]} 42. Ke1 {[%clk 0:00:56.7]} 42...
Qh4+ {[%clk 0:00:21.2]} 43. Rf2+ {[%clk 0:00:55.9]} 43... Kg7 {[%clk 0:00:20.8]}
44. Ke2 {[%clk 0:00:52.7]} 44... h5 {[%clk 0:00:19.4]} 45. Rg2+ {[%clk 0:00:48]}
45... Kh8 {[%clk 0:00:18.1]} 46. Re8+ {[%clk 0:00:38.5]} 46... Kh7 {[%clk
0:00:17.5]} 47. Re3 {[%clk 0:00:35.6]} 47... Qf4 {[%clk 0:00:16.9]} 48. Rh3
{[%clk 0:00:31]} 48... Qe4+ {[%clk 0:00:15.9]} 49. Kf2 {[%clk 0:00:31.1]} 49...
Qf4+ {[%clk 0:00:16]} 50. Kg1 {[%clk 0:00:30.3]} 50... Qc1+ {[%clk 0:00:15.3]}
51. Kh2 {[%clk 0:00:29.6]} 51... Qf4+ {[%clk 0:00:15.6]} 52. Kg1 {[%clk
0:00:28]} 52... Qc1+ {[%clk 0:00:15.3]} 53. Kf2 {[%clk 0:00:28.3]} 53... Qf4+
{[%clk 0:00:15.1]} 54. Rf3 {[%clk 0:00:27.9]} 54... Qd2+ {[%clk 0:00:14.8]} 55.
Kg3 {[%clk 0:00:27.7]} 55... Qg5+ {[%clk 0:00:14.6]} 56. Kh3 {[%clk 0:00:27.4]}
56... Qd5 {[%clk 0:00:15]} 57. Rfg3 {[%clk 0:00:25.5]} 57... Qf5+ {[%clk
0:00:14.7]} 58. Kh4 {[%clk 0:00:24]} 58... Qd5 {[%clk 0:00:12.2]} 59. Rg7+
{[%clk 0:00:22.8]} 59... Kh8 {[%clk 0:00:12.2]} 60. R7g5 {[%clk 0:00:21.2]}
60... Qe4+ {[%clk 0:00:11]} 61. Kxh5 {[%clk 0:00:20]} 61... Qf3+ {[%clk
0:00:11.2]} 62. Kh4 {[%clk 0:00:18.6]} 62... Qf4+ {[%clk 0:00:11.1]} 63. Kh3
{[%clk 0:00:16.6]} 63... Qf3+ {[%clk 0:00:11.1]} 64. Kh2 {[%clk 0:00:16.1]}
64... Qf4+ {[%clk 0:00:11.2]} 65. R5g3 {[%clk 0:00:16.3]} 65... Qe5 {[%clk
0:00:11.7]} 66. a4 {[%clk 0:00:15]} 66... Qf4 {[%clk 0:00:10.9]} 67. a5 {[%clk
0:00:14.7]} 67... Qd6 {[%clk 0:00:11.3]} 68. a6 {[%clk 0:00:14.8]} 68... Kh7
{[%clk 0:00:11.2]} 69. a7 {[%clk 0:00:14.5]} 69... Qf4 {[%clk 0:00:08.8]} 70.
a8=Q {[%clk 0:00:14]} 70... Qxg3+ {[%clk 0:00:06.9]} 71. Rxg3 {[%clk 0:00:13.6]}
71... Kh6 {[%clk 0:00:06.3]} 72. Qh8# {[%clk 0:00:14]} 1-0

[Event "*** Titled Tuesday Blitz"]
[Site "Chess.com"]
[Date "2020.04.14"]
[Round "9"]
[White "kleopl"]
[Black "blitzking1729"]
[Result "1-0"]
[WhiteElo "2420"]
[BlackElo "2572"]
[TimeControl "180+1"]
[EndTime "11:44:31 PDT"]
[Termination "kleopl won by checkmate"]

1. c4 {[%clk 0:03:00.9]} 1... e5 {[%clk 0:02:58.9]} 2. Nc3 {[%clk 0:03:00.3]}
2... d6 {[%clk 0:02:57.9]} 3. g3 {[%clk 0:02:58.6]} 3... f5 {[%clk 0:02:57.6]}
4. Bg2 {[%clk 0:02:57.5]} 4... Nf6 {[%clk 0:02:57.3]} 5. d4 {[%clk 0:02:57.2]}
5... e4 {[%clk 0:02:56.3]} 6. h4 {[%clk 0:02:56.3]} 6... Be7 {[%clk 0:02:56.1]}
7. Bg5 {[%clk 0:02:55.1]} 7... c6 {[%clk 0:02:55.5]} 8. Nh3 {[%clk 0:02:55.1]}
8... Be6 {[%clk 0:02:55]} 9. b3 {[%clk 0:02:53.6]} 9... O-O {[%clk 0:02:49.2]}
10. O-O {[%clk 0:02:52.3]} 10... d5 {[%clk 0:02:46.5]} 11. Bxf6 {[%clk 0:02:48]}
11... Bxf6 {[%clk 0:02:46.1]} 12. cxd5 {[%clk 0:02:47.4]} 12... cxd5 {[%clk
0:02:45.6]} 13. Nf4 {[%clk 0:02:45.5]} 13... Bf7 {[%clk 0:02:45.5]} 14. b4
{[%clk 0:02:43.3]} 14... Nc6 {[%clk 0:02:44.8]} 15. a3 {[%clk 0:02:39.8]} 15...
Nxd4 {[%clk 0:02:43.8]} 16. Rc1 {[%clk 0:02:24.5]} 16... Rc8 {[%clk 0:02:39.3]}
17. Ncxd5 {[%clk 0:02:14.5]} 17... Rxc1 {[%clk 0:01:52.8]} 18. Nxf6+ {[%clk
0:02:13.5]} 18... Qxf6 {[%clk 0:01:52.4]} 19. Qxc1 {[%clk 0:02:12.8]} 19... Qa6
{[%clk 0:01:51.6]} 20. e3 {[%clk 0:02:07.3]} 20... Nb3 {[%clk 0:01:48.6]} 21.
Qb2 {[%clk 0:02:06.2]} 21... Rd8 {[%clk 0:01:45.5]} 22. Re1 {[%clk 0:01:51.2]}
22... Qf6 {[%clk 0:01:43.3]} 23. Qxf6 {[%clk 0:01:45.7]} 23... gxf6 {[%clk
0:01:44.2]} 24. Bh3 {[%clk 0:01:42.4]} 24... Nd2 {[%clk 0:01:31.4]} 25. Kg2
{[%clk 0:01:30.6]} 25... Nc4 {[%clk 0:01:08.2]} 26. Bxf5 {[%clk 0:01:23.2]}
26... Re8 {[%clk 0:01:05.8]} 27. a4 {[%clk 0:01:16.5]} 27... Re5 {[%clk
0:01:05]} 28. Bc8 {[%clk 0:01:07.3]} 28... Nd6 {[%clk 0:01:04.3]} 29. Bd7 {[%clk
0:01:05.5]} 29... Re7 {[%clk 0:00:35.7]} 30. Bg4 {[%clk 0:01:02.9]} 30... Bb3
{[%clk 0:00:33.2]} 31. a5 {[%clk 0:00:59.8]} 31... f5 {[%clk 0:00:32]} 32. Be2
{[%clk 0:00:55.6]} 32... Rc7 {[%clk 0:00:31.2]} 33. Bd1 {[%clk 0:00:51.2]} 33...
Bf7 {[%clk 0:00:28.3]} 34. Be2 {[%clk 0:00:45.6]} 34... Bb3 {[%clk 0:00:25.2]}
35. Rb1 {[%clk 0:00:44.7]} 35... Bf7 {[%clk 0:00:21.9]} 36. Rd1 {[%clk
0:00:43.5]} 36... Nc4 {[%clk 0:00:17.7]} 37. Bxc4 {[%clk 0:00:36.5]} 37... Rxc4
{[%clk 0:00:17.2]} 38. Rd4 {[%clk 0:00:36.7]} 38... Rxd4 {[%clk 0:00:14.4]} 39.
exd4 {[%clk 0:00:36.1]} 39... Kf8 {[%clk 0:00:14.9]} 40. Kf1 {[%clk 0:00:35.3]}
40... Ke7 {[%clk 0:00:14.9]} 41. Ke2 {[%clk 0:00:35.3]} 41... Kd6 {[%clk
0:00:15.1]} 42. Ke3 {[%clk 0:00:34.5]} 42... Kc6 {[%clk 0:00:15.1]} 43. Kd2
{[%clk 0:00:34.5]} 43... Kb5 {[%clk 0:00:15.2]} 44. Kc3 {[%clk 0:00:34.8]} 44...
b6 {[%clk 0:00:15.5]} 45. axb6 {[%clk 0:00:33.8]} 45... axb6 {[%clk 0:00:16.4]}
46. Nh3 {[%clk 0:00:26.3]} 46... h6 {[%clk 0:00:13.8]} 47. Nf4 {[%clk
0:00:25.1]} 47... Ba2 {[%clk 0:00:11.6]} 48. Ng6 {[%clk 0:00:24.9]} 48... Be6
{[%clk 0:00:10.9]} 49. Ne7 {[%clk 0:00:23.3]} 49... Bd7 {[%clk 0:00:08.7]} 50.
d5 {[%clk 0:00:19.2]} 50... Ka4 {[%clk 0:00:08.5]} 51. Kc4 {[%clk 0:00:18.4]}
51... Bb5+ {[%clk 0:00:07.6]} 52. Kc3 {[%clk 0:00:18.5]} 52... Bd7 {[%clk
0:00:07.6]} 53. Nc6 {[%clk 0:00:18.5]} 53... Kb5 {[%clk 0:00:07.1]} 54. Nd4+
{[%clk 0:00:18.6]} 54... Ka4 {[%clk 0:00:07.4]} 55. Kc4 {[%clk 0:00:18.6]} 55...
Ka3 {[%clk 0:00:07]} 56. d6 {[%clk 0:00:13.9]} 56... Kb2 {[%clk 0:00:07.1]} 57.
b5 {[%clk 0:00:11.8]} 57... Kc1 {[%clk 0:00:06.8]} 58. Nc6 {[%clk 0:00:10.5]}
58... Kd2 {[%clk 0:00:06.9]} 59. Ne5 {[%clk 0:00:10.7]} 59... Be6+ {[%clk
0:00:07.5]} 60. Kd4 {[%clk 0:00:09.4]} 60... Ke2 {[%clk 0:00:08]} 61. d7 {[%clk
0:00:08.5]} 61... Bxd7 {[%clk 0:00:08.4]} 62. Nxd7 {[%clk 0:00:09.4]} 62... Kxf2
{[%clk 0:00:09.2]} 63. Nxb6 {[%clk 0:00:08.8]} 63... e3 {[%clk 0:00:08.8]} 64.
Nd5 {[%clk 0:00:05.4]} 64... e2 {[%clk 0:00:08.5]} 65. Nf4 {[%clk 0:00:05.4]}
65... Kxg3 {[%clk 0:00:04.9]} 66. Nxe2+ {[%clk 0:00:05.2]} 66... Kf2 {[%clk
0:00:04.8]} 67. Nf4 {[%clk 0:00:03.7]} 67... Kg3 {[%clk 0:00:04.6]} 68. Ke5
{[%clk 0:00:04.6]} 68... Kxh4 {[%clk 0:00:04.6]} 69. b6 {[%clk 0:00:05]} 69...
Kg4 {[%clk 0:00:05.3]} 70. b7 {[%clk 0:00:05.5]} 70... h5 {[%clk 0:00:06.2]} 71.
b8=Q {[%clk 0:00:05.6]} 71... h4 {[%clk 0:00:07.1]} 72. Qg8+ {[%clk 0:00:05.8]}
72... Kf3 {[%clk 0:00:07]} 73. Qg2+ {[%clk 0:00:06.3]} 73... Ke3 {[%clk
0:00:07.1]} 74. Qe2# {[%clk 0:00:07.2]} 1-0